Cogmind - Beta 15 @@@ ROGUE MODE // 2025.07.24 @ 22:52:48 Player: lvl5hm Result: Self-destructed Performance ------------- Evolutions (2) 1000 Regions Visited (7) 1400 Robots Destroyed (1) 5 Value Destroyed (10) 10 Prototype IDs (23) 460 Alien Tech Used (0) 0 Bonus (864) 864 TOTAL SCORE: 3739 Bonus ------- Pacifist 564 Aligned with FarCom 300 Cogmind --------- Core Integrity 387/550 Matter 252/300 Energy 100/100 System Corruption 6% Temperature Hot (279) Movement Core (50) Location -8/Materials Parts ------- > --- POWER (1) -------- (None) > --- PROPULSION (4) --- (None) > --- UTILITY (4) ------ (None) > --- WEAPON (2) ------- Heavy Hammer > --- INVENTORY (5) ---- Light Deuterium Engine Cooling System Terrain Scanner Hardened Light Armor Plating System Shield Peak State ------------ > --- POWER ------------ (None) > --- PROPULSION ------- VTOL Module VTOL Module VTOL Module > --- UTILITY ---------- Hardened Light Armor Plating Hardened Light Armor Plating Trap Reconfigurator > --- WEAPON ----------- Heavy Hammer > --- INVENTORY -------- Light Deuterium Engine Cooling System Terrain Scanner System Shield [Rating: 21] Favorites ----------- Power Light Ion Engine Engine Light Ion Engine Propulsion VTOL Module Treads Light Treads Flight Unit VTOL Module Utility Hardened Light Armor Plating Device Terrain Scanner Protection Hardened Light Armor Plating Weapon Heavy Hammer Impact Weapon Heavy Hammer Build | -11 -10 -10 -9 -9 -9 -8 -8 ------- Run | Yrd Mat Min Mat Min Exi Min Mat Slots Evolved 4 | . . . 2 . . . 2 Power . | . . . . . . . . Propulsion 2 | . . . 2 . . . . Utility 2 | . . . . . . . 2 Weapon . | . . . . . . . . Parts Attached 13 | 2 1 . 6 . . 1 3 Power 1 | . . . 1 . . . . Engine 1 | . . . 1 . . . . Core . | . . . . . . . . Reactor . | . . . . . . . . Propulsion 6 | 2 . . 4 . . . . Treads 2 | 2 . . . . . . . Leg . | . . . . . . . . Wheel . | . . . . . . . . Hover . | . . . . . . . . Flight 4 | . . . 4 . . . . Utility 5 | . 1 . 1 . . 1 2 Device 3 | . 1 . . . . . 2 Storage . | . . . . . . . . Processor . | . . . . . . . . Hackware . | . . . . . . . . Protection 2 | . . . 1 . . 1 . Artifact . | . . . . . . . . Weapon 1 | . . . . . . . 1 Energy Gun . | . . . . . . . . Energy Cannon . | . . . . . . . . Ballistic Gun . | . . . . . . . . Ballistic Cannon . | . . . . . . . . Launcher . | . . . . . . . . Special Weapon . | . . . . . . . . Impact Weapon 1 | . . . . . . . 1 Slashing Weapon . | . . . . . . . . Piercing Weapon . | . . . . . . . . Special Melee Weapon . | . . . . . . . . Unidentified Prototypes . | . . . . . . . . Parts Lost 5 | . . . 2 . . . 3 Power 1 | . . . 1 . . . . Propulsion 4 | . . . 1 . . . 3 Utility . | . . . . . . . . Weapon . | . . . . . . . . Highest Loss Streak 2 | . . . 1 . . . 2 To Critical Strikes . | . . . . . . . . Average Backups 3 | . 3 5 1 3 3 4 5 Power . | . 1 1 . . . . . Propulsion . | . 2 4 . . . . . Utility 1 | . . . . 1 1 3 3 Weapon . | . . . 1 2 2 1 . Tool/Special . | . . . . . . . . Unused Backups 4 | . . . . . . 1 3 Power 1 | . . . . . . . 1 Propulsion . | . . . . . . . . Utility 2 | . . . . . . . 2 Weapon 1 | . . . . . . 1 . Tool/Special . | . . . . . . . . Average Slot Usage (%) 48 | . 30 42 63 55 55 52 39 Engine 2 | . . . 9 . . . . Treads 4 | . 28 28 . . . . . Flight 24 | . . . 37 33 33 33 19 Device 7 | . 2 14 11 11 11 . 4 Protection 7 | . . . 4 11 11 19 8 Impact Weapon 2 | . . . . . . . 6 Peak Build Rating 21 | 2 3 3 12 9 10 11 21 Average Rating 9 | 1 2 3 9 9 9 10 12 On Entrance 5 | . 2 3 3 9 9 10 11 Naked Turns 1 | . 1 . . . . . . Heaviest Build 12 | . 1 1 9 6 6 10 12 Greatest Support 20 | 20 20 3 16 12 12 12 12 Greatest Overweight (x) . | . . . . . . . . Average Overweight (x) . | . . . . . . . . Largest Inventory Capacity 5 | 5 5 5 5 5 5 5 5 Average Capacity 5 | 5 5 5 5 5 5 5 5 Most Carried 5 | 1 5 5 5 3 4 5 5 Average Carried 3 | . 4 5 1 3 3 4 4 Final Capacity 5 | 5 5 5 5 5 5 5 5 Final Carried 5 | 1 5 5 3 3 4 5 5 Class Distribution -------------------- 67% | Sprinter 32% | Mutant Dominant Class ---------------- Mutant | -10/Materials Mutant | -10/Mines Sprinter | -9/Materials Sprinter | -9/Mines Sprinter | -9/Exiles Sprinter | -8/Mines Sprinter | -8/Materials Resources | -11 -10 -10 -9 -9 -9 -8 -8 ----------- Run | Yrd Mat Min Mat Min Exi Min Mat Matter Collected 277 | 220 23 . . . . 34 . Remotely . | . . . . . . . . Salvage Created 14 | . . . . . . . 14 Parts . | . . . . . . . . Haulers Intercepted . | . . . . . . . . Recyclers Shooed . | . . . . . . . . Parts Field Recycled . | . . . . . . . . Retrieved Matter . | . . . . . . . . Parts Self-Destructed . | . . . . . . . . Prevented . | . . . . . . . . Kills | -11 -10 -10 -9 -9 -9 -8 -8 ------- Run | Yrd Mat Min Mat Min Exi Min Mat Combat Hostiles Destroyed 1 | . . . . . . . 1 Classes Destroyed 1 | . . . . . . . 1 Swarmer 1 | . . . . . . . 1 Best Kill Streak 1 | . . . . . . . 1 Combat Bots Only 1 | . . . . . . . 1 Max Kills in Single Turn 1 | . . . . . . . 1 Gunslinging . | . . . . . . . . Exploded . | . . . . . . . . Melee . | . . . . . . . . Uniques/NPCs Destroyed . | . . . . . . . . Combat | -11 -10 -10 -9 -9 -9 -8 -8 -------- Run | Yrd Mat Min Mat Min Exi Min Mat Hostile Shots Fired 93 | . 14 . 44 . . 16 19 Missed 40 | . 5 . 24 . . 5 6 Hits 53 | . 9 . 20 . . 11 13 Melee 1 | . . . . . . . 1 Projectile 52 | . 9 . 20 . . 11 12 Critical Strikes 1 | . . . . . . . 1 Damage Taken 787 | . 115 . 252 . . 81 339 Core 358 | . 90 . 82 . . 23 163 Absorbed by Shields . | . . . . . . . . Core Remaining (%) 79 | 100 . 64 . . . 73 . Volleys Fired . | . . . . . . . . Largest . | . . . . . . . . Hottest . | . . . . . . . . Shots Fired . | . . . . . . . . Gun . | . . . . . . . . Cannon . | . . . . . . . . Launcher . | . . . . . . . . Special . | . . . . . . . . Kinetic . | . . . . . . . . Thermal . | . . . . . . . . Explosive . | . . . . . . . . Electromagnetic . | . . . . . . . . Robot Hit Streak . | . . . . . . . . Robot Miss Streak . | . . . . . . . . Penetration Max . | . . . . . . . . Secondary Targets . | . . . . . . . . Shots Hit Robots 1 | . . . . . . . 1 Core Hits . | . . . . . . . . Critical Kills . | . . . . . . . . Critical Parts Destroyed . | . . . . . . . . Critical Strikes . | . . . . . . . . Melee Attacks 9 | . . . . . . . 9 Impact 9 | . . . . . . . 9 Slashing . | . . . . . . . . Piercing . | . . . . . . . . Sneak Attacks . | . . . . . . . . Combat Hostiles . | . . . . . . . . Follow-up Attacks . | . . . . . . . . Damage Inflicted 61 | . . . . . . . 61 Guns . | . . . . . . . . Cannons . | . . . . . . . . Explosions . | . . . . . . . . Melee 61 | . . . . . . . 61 Ramming . | . . . . . . . . Kinetic . | . . . . . . . . Thermal . | . . . . . . . . Explosive . | . . . . . . . . Electromagnetic . | . . . . . . . . Impact 61 | . . . . . . . 61 Slashing . | . . . . . . . . Piercing . | . . . . . . . . Highest Corruption 6 | . . . . . . . 6 Average Corruption 6 | . . . . . . . 6 Corruption Purged . | . . . . . . . . Corruption Blocked . | . . . . . . . . Effects 2 | . . . . . . . 2 Message Errors 1 | . . . . . . . 1 Heat Flow Errors 1 | . . . . . . . 1 Overload Shots . | . . . . . . . . Overflow Damage 41 | . . . . . . . 41 Projectiles . | . . . . . . . . Explosions . | . . . . . . . . Melee 41 | . . . . . . . 41 Knockbacks 1 | . . . . . . . 1 Impact 1 | . . . . . . . 1 Kinetic . | . . . . . . . . Secondary . | . . . . . . . . Self-Inflicted Damage . | . . . . . . . . Shots . | . . . . . . . . Rammed . | . . . . . . . . Targets Rammed . | . . . . . . . . Kicked . | . . . . . . . . Crushed . | . . . . . . . . Highest Temperature 270 | . . . 27 . . . 270 Average Temperature 25 | . . . 11 . . . 270 Received Heat Transfer 198 | . 66 . 69 . . . 63 Siege Activations . | . . . . . . . . Martial Activations . | . . . . . . . . Shielding Activations . | . . . . . . . . Robots Disrupted . | . . . . . . . . Combat Hostiles . | . . . . . . . . Robots Corrupted 1 | . . . . . . . 1 Combat Hostiles 1 | . . . . . . . 1 Parts Fried 1 | . . . . . . . 1 Impact Corruptions 1 | . . . . . . . 1 Robots Melted . | . . . . . . . . Combat Hostiles . | . . . . . . . . Parts Melted . | . . . . . . . . Heat Transferred . | . . . . . . . . Parts Sabotaged . | . . . . . . . . Parts Stolen . | . . . . . . . . Parts Stripped . | . . . . . . . . Power Chain Reactions . | . . . . . . . . Alert | -11 -10 -10 -9 -9 -9 -8 -8 ------- Run | Yrd Mat Min Mat Min Exi Min Mat Maximum Alert Level . | . . . . . . . . Low Security (%) 100 | 100 100 100 100 100 . 100 100 Level 1 . | . . . . . . . . Level 2 . | . . . . . . . . Level 3 . | . . . . . . . . Level 4 . | . . . . . . . . Level 5 . | . . . . . . . . High Security . | . . . . . . . . Max Security . | . . . . . . . . Peak Influence 71 | . 15 5 71 15 . 35 33 Initial 19 | . . 5 . 15 . . 19 Average 8 | . . 2 12 15 . 14 7 Influence Increases 273 | . 15 . 117 . . 60 81 Destroy 0b10 Robot/C 20 | . . . . . . . 20 Destroy Leader 10 | . . . . . . . 10 Successful Hack 41 | . . . 27 . . . 14 Destroy Structure 7 | . . . . . . . 7 Partial Spotted 45 | . 15 . 15 . . . 15 Lose Combat Pursuer 150 | . . . 75 . . 60 15 Influence Decreases 243 | . . 15 76 26 15 10 101 Entered New Map 82 | . . 10 . 26 15 . 31 Time Decay 140 | . . 5 56 . . 10 69 Lost Part 21 | . . . 20 . . . 1 Squads Dispatched 2 | . . . 1 . . . 1 Investigation 1 | . . . 1 . . . . Extermination . | . . . . . . . . Reinforcement 1 | . . . . . . . 1 Assault . | . . . . . . . . Garrison . | . . . . . . . . Intercept . | . . . . . . . . Searches Triggered . | . . . . . . . . Construction Impeded . | . . . . . . . . Haulers Reinforced . | . . . . . . . . Active Scanning Responses . | . . . . . . . . Cargo Convoy Interrupts . | . . . . . . . . Stealth | -11 -10 -10 -9 -9 -9 -8 -8 --------- Run | Yrd Mat Min Mat Min Exi Min Mat Distress Signals 8 | . 2 . 4 . . . 2 Communications Jammed . | . . . . . . . . Distress Signals . | . . . . . . . . Times Spotted 38 | . 3 . 18 . . 6 11 Peak Tracking Total 13 | . 5 . 13 . . 3 10 Tactical Retreats 5 | . . . 2 . . 2 1 Traps | -11 -10 -10 -9 -9 -9 -8 -8 ------- Run | Yrd Mat Min Mat Min Exi Min Mat Traps Triggered 1 | . 1 . . . . . . Indirectly . | . . . . . . . . Trap Hack Attempts . | . . . . . . . . Triggered . | . . . . . . . . Disarmed . | . . . . . . . . Reprogrammed . | . . . . . . . . Reused . | . . . . . . . . Traps Reconfigurated 3 | . . . . . . . 3 Traps Extracted . | . . . . . . . . Installed . | . . . . . . . . Triggered . | . . . . . . . . Machines | -11 -10 -10 -9 -9 -9 -8 -8 ---------- Run | Yrd Mat Min Mat Min Exi Min Mat Machines Disabled . | . . . . . . . . Max in Single Turn . | . . . . . . . . Machines Repaired . | . . . . . . . . Machines Dismantled . | . . . . . . . . Machines Sabotaged . | . . . . . . . . Overloaded Fab Kills . | . . . . . . . . Hacking | -11 -10 -10 -9 -9 -9 -8 -8 --------- Run | Yrd Mat Min Mat Min Exi Min Mat Machines Accessed 13 | . . . 6 . 1 . 6 Terminals 11 | . . . 6 . . . 5 Fabricators . | . . . . . . . . Repair Stations . | . . . . . . . . Recycling Units . | . . . . . . . . Scanalyzers 1 | . . . . . . . 1 Garrison Access . | . . . . . . . . Total Hacks 29 | . . . 16 . 1 . 12 Successful 12 | . . . 6 . 1 . 5 Failed 17 | . . . 10 . . . 7 Catastrophic 4 | . . . 3 . . . 1 Database Lockouts . | . . . . . . . . Manual 27 | . . . 16 . 1 . 10 Terminals 27 | . . . 16 . . . 11 Fabricators . | . . . . . . . . Repair Stations . | . . . . . . . . Recycling Units . | . . . . . . . . Scanalyzers 1 | . . . . . . . 1 Garrison Access . | . . . . . . . . Terminal Hacks 7 | . . . 3 . 1 . 3 Robot Analysis 2 | . . . 1 . . . 1 Branch Access Points 1 | . . . 1 . . . . Unreport Threat 1 | . . . 1 . . . . Registered Components 1 | . . . . . . . 1 Zone Layout 1 | . . . . . . . 1 Proto ID Catalog 1 | . . . . . 1 . . Fabricator Hacks . | . . . . . . . . Repair Station Hacks . | . . . . . . . . Recycling Unit Hacks . | . . . . . . . . Scanalyzer . | . . . . . . . . Garrison Access Hacks . | . . . . . . . . Unauthorized Hacks 5 | . . . 3 . . . 2 Terminals 5 | . . . 3 . . . 2 Botnet 5 | . . . 3 . . . 2 Fabricators . | . . . . . . . . Repair Stations . | . . . . . . . . Recycling Units . | . . . . . . . . Scanalyzers . | . . . . . . . . Garrison Access . | . . . . . . . . Data Cores Recovered . | . . . . . . . . Used . | . . . . . . . . Hacking Detections 11 | . . . 6 . . . 5 Full Trace Events 3 | . . . 3 . . . . Feedback Events . | . . . . . . . . Feedback Blocked . | . . . . . . . . Robot Schematics Acquired . | . . . . . . . . Robots Built . | . . . . . . . . Authchips . | . . . . . . . . Time . | . . . . . . . . Total Robot Build Rating . | . . . . . . . . Part Schematics Acquired . | . . . . . . . . Parts Built . | . . . . . . . . Authchips . | . . . . . . . . Time . | . . . . . . . . Total Part Build Rating . | . . . . . . . . Parts Repaired . | . . . . . . . . Time . | . . . . . . . . Parts Recycled . | . . . . . . . . Recycled Matter . | . . . . . . . . Retrieved Matter . | . . . . . . . . Retrieved Components . | . . . . . . . . Parts Scanalyzed . | . . . . . . . . Part Schematics Acquired . | . . . . . . . . Parts Damaged . | . . . . . . . . Bothacking | -11 -10 -10 -9 -9 -9 -8 -8 ------------ Run | Yrd Mat Min Mat Min Exi Min Mat Used RIF Installer . | . . . . . . . . Robots Hacked . | . . . . . . . . Non-combat . | . . . . . . . . Combat . | . . . . . . . . Robot Hacks Applied . | . . . . . . . . Relay Couplers Released . | . . . . . . . . Fabnet Peak Effective % . | . . . . . . . . Robots Rewired . | . . . . . . . . Allies Hacked . | . . . . . . . . Hacks Repelled . | . . . . . . . . Allies | -11 -10 -10 -9 -9 -9 -8 -8 -------- Run | Yrd Mat Min Mat Min Exi Min Mat Total Allies . | . . . . . . . . Largest Group . | . . . . . . . . Highest-Rated Group . | . . . . . . . . Highest-Rated Ally . | . . . . . . . . Total Orders . | . . . . . . . . Ally Attacks . | . . . . . . . . Total Damage . | . . . . . . . . Kills . | . . . . . . . . Allies Corrupted . | . . . . . . . . Allies Melted . | . . . . . . . . Intel | -11 -10 -10 -9 -9 -9 -8 -8 ------- Run | Yrd Mat Min Mat Min Exi Min Mat Active Infowar (turns) 310 | . 12 42 183 11 62 . . Terrain 310 | . 12 42 183 11 62 . . Robot Analysis Total 2 | . . . 1 . . . 1 Derelict Logs Recovered 2 | . . . . 2 . . . Drone Launches . | . . . . . . . . Drone Recoveries . | . . . . . . . . Exploration | -11 -10 -10 -9 -9 -9 -8 -8 ------------- Run | Yrd Mat Min Mat Min Exi Min Mat Turns Passed 675 | 23 44 42 183 11 62 37 273 Spaces Moved 1514 | 34 69 84 571 37 210 100 409 Core 206 | 32 68 84 . . . . 22 Treads 3 | 2 1 . . . . . . Legs . | . . . . . . . . Wheels . | . . . . . . . . Hover . | . . . . . . . . Flight 1305 | . . . 571 37 210 100 387 Fastest Speed 26 | 50 50 50 26 29 29 29 29 Average Speed 31 | 56 51 50 27 29 29 29 30 Slowest Speed 160 | 160 160 50 29 29 29 29 50 Overloaded Moves . | . . . . . . . . Propulsion Burnouts . | . . . . . . . . Robots Hopped 18 | . . . 15 . . 2 1 Potential Cave-ins . | . . . . . . . . Cave-ins Triggered 1 | . . . . . . . 1 Exploration Rate (%) 27 | 3 17 31 48 11 60 29 24 Regions Visited 7 Branch Regions 4 Pre-discovered Areas . | . . . . . . . . Known Exits Taken 1 | . . . 1 . . . . Unknown Exits Taken 6 | 1 1 1 . 1 1 1 . Scrap Searched 1 | . . . . . . 1 . Spaces Dug 8 | . . . . . . . 8 Terrain Destroyed 8 | . . . . . . . 8 Melee 8 | . . . . . . . 8 Projectile . | . . . . . . . . AOE . | . . . . . . . . Terrain Rammed . | . . . . . . . . Walls Destroyed . | . . . . . . . . Machines Disabled . | . . . . . . . . Actions | -11 -10 -10 -9 -9 -9 -8 -8 --------- Run | Yrd Mat Min Mat Min Exi Min Mat Total 1672 | 36 75 83 583 36 210 106 543 Wait 139 | . . . 17 . . 4 118 Move 1471 | 33 68 83 540 36 209 95 407 Hop 18 | . . . 15 . . 2 1 Pick Up 12 | 1 4 . 3 . 1 2 1 Fast Attach 7 | 2 3 . 1 . . . 1 Attach 7 | . . . 5 . . 1 1 Detach 2 | . . . . . . 1 1 Swap 1 | . . . . . . . 1 Drop 6 | . . . 2 . . 1 3 Fire . | . . . . . . . . Melee 9 | . . . . . . . 9 Ram . | . . . . . . . . Kick . | . . . . . . . . Crush . | . . . . . . . . Escape Stasis . | . . . . . . . . Rewire . | . . . . . . . . Trap . | . . . . . . . . Miscellaneous . | . . . . . . . . Route ------- -11/Scrapyard -10/Materials -10/Mines -9/Materials (discovered 4 exits: *Mat x2 / *Min x2) -9/Mines -9/Exiles -8/Mines -8/Materials (discovered 1 exit: Fac) History --------- Turn | Location | Event 6 | -11/Scrapyard | Discovered new exit (range 15) 24 | -11/Scrapyard | Entered Materials 65 | -10/Materials | Discovered new exit (range 8) 68 | -10/Materials | Entered Mines 107 | -10/Mines | Discovered new exit (range 7) 110 | -10/Mines | Entered Materials 110 | -9/Materials | Evolved 2 slots: Propulsion x2 174 | -9/Materials | Identified exit to Mines 210 | -9/Materials | Discovered new exit (range 16) 244 | -9/Materials | Discovered new exit (range 14) 293 | -9/Materials | Entered Mines 296 | -9/Mines | Learned 2 Materials zone layouts 296 | -9/Mines | Learned Materials garrison access intel 303 | -9/Mines | Deemed a non-threat by the Exiles lab entrance 303 | -9/Mines | Discovered new exit (range 5) 304 | -9/Mines | Entered Exiles 311 | -9/Exiles | Met 8R-AWN 317 | -9/Exiles | Met EX-HEX 325 | -9/Exiles | Met EX-BIN 329 | -9/Exiles | Aligned with FarCom system 329 | -9/Exiles | Given EX-Vault access code 336 | -9/Exiles | Opened EX-Vault 338 | -9/Exiles | Found Trap Reconfigurator 344 | -9/Exiles | Warned to stay clear of 0b10 Research branches 353 | -9/Exiles | Met EX-DEC 363 | -9/Exiles | Discovered new exit (range 14) 366 | -9/Exiles | Left Exiles lab with Trap Reconfigurator 366 | -9/Exiles | Entered Mines 401 | -8/Mines | Discovered new exit (range 9) 403 | -8/Mines | Entered Materials 403 | -8/Materials | Evolved 2 slots: Utility x2 404 | -8/Materials | Identified exit to Factory 405 | -8/Materials | Loaded intel: 1 garrison access location 510 | -8/Materials | Build established: Sprinter 570 | -8/Materials | Crushed by falling debris 676 | -8/Materials | Self-destructed Last Messages --------------- Downloaded coordinate data. 00570_ The unstable cave ceiling collapses. 00570_ Crushed by falling debris. 00570_ VTOL Module destroyed. 00570_ System corrupted by crushing effect (+1). 00570_ VTOL Module destroyed. 00570_ System corrupted by crushing effect (+5). 00570_ Dropped Hrd. Light Armor Plating. 00570_ Dropped Trap Reconfigurator. 00572_ U-05 Engineer builds a Wall. 00614_ UNKZH>Z5SZEF9DPCBCKB//Y#RM1Q,VKW 00659_ VTOL Module destroyed. 00671_ Critical hit (Burn: +37). 00674_ Destroyed Flight Unit. 00674_ S-10 Pest system corrupted by crushing effect. 00674_ S-10 Pest knocked back. 00675_ System corrupted: Heat flow error (+299). 00675_ S-10 Pest system terminally corrupted. 00675_ Flight Unit fried. Map ----- +----------------------------------------------------+ | ?????????????????????????????????????????????????? | | ?????????????????????????????????????????????????? | | ?????????????????????????????????????????????????? | | ?????????????????????????????????????????????????? | | ?????????????????????????????????????????????????? | | ?????????????????????????????????????????????????? | | ?????????????????????????????????????????????????? | | ?????????????????????????????????????????????????? | | ?????????????????????????????????????????????????? | | ?????????????????????????????????????????????????? | | ?????????????????????????????????????????????????? | | ?????????????????????????????????????????????????? | | ?????????????????????????????????????????????????? | | ?????????????????????????????????????????????????? | | ?????????????????????????????????????????????????? | | ??????????????????????????????????########???????? | | ??????????????????????????????????# #???????? | | ????????????????????????########??# #???????? | | ????????????????????????? """" ####!! ""#???????? | | ????????????????????????? """" ## # T"#???????? | | ??????????????????????????"""" ?### ""#??###### | | ?????????????????????????? ???# #? | | ?????????????????????s????? ????##"#+###? | | ??????????????????????????? ?????# # | | ?????????????????#+#########+#######b # """ ""? | | ??????????u k k a t @ s gYg + """ ""? | | ?????????????????#+# ############### # """ ""? | | ?????????????????w?????????????????# # | | ?????????????????w?????????????????### ###? | | ???????????????w!?????????????###??### #???####### | | ?????????????????????????????##"###"## #????# ! | | ?????????????????????????????#" #?# ###### ** | | ?????????????????????????????## #?# #! | | ??????????????????????????????# ######+# # | | ??????????????????????????????# # / # ###+## | | ??????????????????????????????# " # #? | | ??????????????????????????????# # # #? | | ??????????????????????????????# # # ## | | ?????????????????????##???????# # # # | | ?????????????????????#"######## # # # | | ??????????????????????# #+##+######## # | | ??????????????????????# + + ## # | | ??????????????????????# # # """## # | | ??????????????????#######+##+## # """## ^^^# | | ??????????????????# + #[ """## # | | ??????????????????# # # ## # | | ??????????????????# """ # ##+##### # | | ??????????????????# """ # # | | ??????????????????# """ # ##### # | | ??????????????????# # ##+##+##### # | +----------------------------------------------------+ Best States ------------- Heat Dissipation 31 Energy Generation 10 Energy Capacity 125 Matter Stores 300 Matter Capacity 300 Sight Range 16 Terrain Scan Range 14 Terrain Scan Density 10 Armor Coverage 300 Evasion (%) 64 Recoil Reduction 2 Item Schematics ----------------- None Robot Schematics ------------------ None Fabricated ------------ Nothing Repaired ---------- Nothing Alien Tech Used ----------------- None Achievements -------------- None Challenges ------------ None Game ------ Seed PartitionWeaponsEdition Manual? 0 Play Time 00:19:30 Cumulative 85.7 hours Start 2025.07.24 @ 22:30:31 End 2025.07.24 @ 22:52:48 Sessions 1 Manual Loads 0 Difficulty Rogue Special Mode None Game No. 75 Rogue 75 Adventurer 0 Explorer 0 Win Type - Total 3 Types 3/0/0/0/0/0/0/0/0/0 Lore% 23 Gallery% 44 Achievement% 41 Wizard Run 0 Options --------- Layout 2 ASCII 0 Keyboard 1 Movement Arrows Keybinds 0 Fullscreen 1 Font 32/SmallcapsGlow Map View 50x44 Zoom Use 0% Tactical HUD 1 Map Filters NONE Filters NONE Steam 1 RUN: 273d606d-bef6-4721-9b27-3003d411b905